fUST/lending_fUST_20250119
["ID","MTS","AMOUNT","RATE_DAILY","PERIOD"]
[349520133,1737274236458,-806.12164852,0.000219,2]
[349520134,1737274236467,-3517.46059972,0.000219,3]
[349520135,1737274236476,-3492.06238374,0.00021905,2]
[349520136,1737274236496,-8667.77367747,0.00021905,2]
[349520137,1737274236505,-399.90569006,0.00021907,3]
[349520138,1737274236517,-237.58430994,0.00021907,3]
[349520139,1737274236527,-176.905,0.00021913,2]
[349520140,1737274236536,-503.32061682,0.00021917,2]
[349520141,1737274236546,-94.90884709,0.00021917,3]
[349520156,1737274238928,-405.09115291,0.00021917,3]
[349520158,1737274238939,-500.0,0.00021917,3]
[349520160,1737274238949,-500.0,0.00021917,3]
[349520161,1737274238959,-500.0,0.00021917,3]
[349520163,1737274238968,-500.0,0.00021917,3]
[349520165,1737274238978,-500.0,0.00021917,3]
[349520166,1737274238988,-191.18404781,0.00021917,2]
[349520168,1737274238998,-548.41407387,0.00021917,3]
[349520170,1737274239007,-500.0,0.00021917,3]
[349520171,1737274239016,-500.0,0.00021917,3]
[349520173,1737274239025,-500.0,0.00021917,3]
[349520175,1737274239034,-500.0,0.00021917,3]
[349520176,1737274239043,-500.0,0.00021917,3]
[349520178,1737274239054,-500.0,0.00021917,3]
[349520180,1737274239064,-500.0,0.00021917,3]
[349520181,1737274239073,-500.0,0.00021917,3]
[349520183,1737274239083,-500.0,0.00021917,3]
[349520185,1737274239091,-500.0,0.00021917,3]
[349520186,1737274239101,-500.0,0.00021917,3]
[349520188,1737274239110,-500.0,0.00021917,3]
[349520189,1737274239119,-500.0,0.00021917,3]
[349520191,1737274239129,-500.0,0.00021917,3]
[349520193,1737274239138,-500.0,0.00021917,3]
[349520194,1737274239149,-500.0,0.00021917,3]
[349520196,1737274239158,-500.0,0.00021917,3]
[349520198,1737274239168,-500.0,0.00021917,3]
[349520199,1737274239177,-500.0,0.00021917,3]
[349520201,1737274239187,-500.0,0.00021917,3]
[349520202,1737274239196,-500.0,0.00021917,3]
[349520204,1737274239206,-500.0,0.00021917,3]
[349520206,1737274239215,-501.95044939,0.00021917,3]
[349520207,1737274239225,-500.0,0.00021917,3]
[349520209,1737274239234,-535.21877951,0.00021917,3]
[349520211,1737274239244,-500.0,0.00021917,3]
[349520213,1737274239262,-500.0,0.00021917,3]
[349520215,1737274239272,-500.0,0.00021917,3]
[349520216,1737274239281,-500.0,0.00021917,3]
[349520217,1737274239290,-219.34642532,0.00021917,3]
[349520218,1737274239303,-500.0,0.00021917,3]
[349520219,1737274239313,-500.0,0.00021917,3]
[349520220,1737274239323,-500.0,0.00021917,3]
[349520221,1737274239333,-500.0,0.00021917,3]
[349520222,1737274239342,-500.0,0.00021917,3]
[349520223,1737274239351,-502.11306301,0.00021917,3]
[349520224,1737274239361,-502.36110382,0.00021917,3]
[349520225,1737274239371,-500.0,0.00021917,3]
[349520226,1737274239382,-500.0,0.00021917,3]
[349520227,1737274239392,-500.0,0.00021917,3]
[349520228,1737274239403,-500.0,0.00021917,3]
[349520229,1737274239415,-500.0,0.00021917,3]
[349520230,1737274239425,-504.24644862,0.00021917,3]
[349520232,1737274239434,-500.0,0.00021917,3]
[349520233,1737274239443,-500.0,0.00021917,2]
[349520235,1737274239454,-500.0,0.00021917,3]
[349520237,1737274239464,-500.0,0.00021917,3]
[349520239,1737274239474,-500.0,0.00021917,3]
[349520241,1737274239483,-200.0,0.00021917,3]
[349520243,1737274239494,-500.0,0.00021917,3]
[349520245,1737274239504,-500.0,0.00021917,3]
[349520247,1737274239512,-500.0,0.00021917,3]
[349520249,1737274239522,-502.71888487,0.00021917,3]
[349520251,1737274239532,-500.0,0.00021917,3]
[349520253,1737274239541,-500.0,0.00021917,3]
[349520255,1737274239552,-516.9357334,0.00021917,3]
[349520257,1737274239562,-500.0,0.00021917,3]
[349520259,1737274239571,-500.0,0.00021917,3]
[349520261,1737274239582,-500.0,0.00021917,3]
[349520263,1737274239591,-500.0,0.00021917,3]
[349520265,1737274239600,-500.0,0.00021917,3]
[349520267,1737274239609,-500.0,0.00021917,3]
[349520280,1737274239721,-500.0,0.00021917,3]
[349520282,1737274239733,-500.0,0.00021917,3]
[349520284,1737274239742,-500.0,0.00021917,3]
[349520286,1737274239753,-500.0,0.00021917,3]
[349520288,1737274239763,-500.0,0.00021917,3]
[349520289,1737274239773,-506.86884258,0.00021917,2]
[349520290,1737274239782,-500.0,0.00021917,3]
[349520292,1737274239794,-500.0,0.00021917,3]
[349520294,1737274239805,-500.0,0.00021917,3]
[349520295,1737274239815,-500.0,0.00021917,3]
[349520296,1737274239825,-500.0,0.00021917,3]
[349520297,1737274239834,-500.0,0.00021917,3]
[349520299,1737274239843,-500.0,0.00021917,3]
[349520301,1737274239852,-502.58069334,0.00021917,3]
[349520302,1737274239862,-500.0,0.00021917,3]
[349520304,1737274239871,-502.45696608,0.00021917,3]
[349520306,1737274239881,-500.0,0.00021917,3]
[349520308,1737274239891,-507.68266,0.00021917,3]
[349520310,1737274239901,-500.0,0.00021917,3]
[349520311,1737274239910,-508.36212013,0.00021917,3]
[349520312,1737274239920,-500.0,0.00021917,3]
[349520313,1737274239930,-500.0,0.00021917,3]
[349520314,1737274239939,-500.0,0.00021917,3]
[349520315,1737274239949,-500.0,0.00021917,3]
[349520316,1737274239959,-500.0,0.00021917,3]
[349520317,1737274239968,-500.0,0.00021917,3]
[349520318,1737274239978,-500.0,0.00021917,2]
[349520319,1737274239987,-503.5,0.00021917,3]
[349520320,1737274239997,-502.23969982,0.00021917,3]
[349520321,1737274240006,-500.0,0.00021917,3]
[349520322,1737274240016,-500.0,0.00021917,3]
[349520323,1737274240025,-504.40486327,0.00021917,3]
[349520324,1737274240035,-500.0,0.00021917,3]
[349520325,1737274240045,-3864.3,0.00021917,3]
[349520326,1737274240055,-501.6814371,0.00021917,3]
[349520327,1737274240064,-500.0,0.00021917,3]
[349520328,1737274240074,-500.0,0.00021917,3]
[349520329,1737274240083,-500.0,0.00021917,3]
[349520330,1737274240093,-500.0,0.00021917,3]
[349520331,1737274240102,-500.0,0.00021917,3]
[349520332,1737274240111,-500.0,0.00021917,3]
[349520333,1737274240120,-500.0,0.00021917,3]
[349520334,1737274240130,-502.71165564,0.00021917,3]
[349520335,1737274240139,-500.0,0.00021917,3]
[349520336,1737274240150,-500.0,0.00021917,3]
[349520337,1737274240160,-500.0,0.00021917,3]
[349520338,1737274240169,-500.0,0.00021917,3]
[349520339,1737274240178,-500.0,0.00021917,3]
[349520340,1737274240187,-500.19286834,0.00021917,3]
[349520341,1737274240196,-500.0,0.00021917,3]
[349520342,1737274240206,-500.0,0.00021917,3]
[349520343,1737274240215,-497.2143442,0.00021917,3]
[349520344,1737274240224,-500.0,0.00021917,3]
[349520346,1737274240234,-500.0,0.00021917,3]
[349520348,1737274240243,-500.0,0.00021917,3]
[349520351,1737274240253,-611.04335349,0.00021917,3]
[349520352,1737274240263,-500.0,0.00021917,3]
[349520353,1737274240272,-500.0,0.00021917,3]
[349520354,1737274240282,-500.0,0.00021917,3]
[349520355,1737274240291,-5458.39,0.00021917,3]
[349520356,1737274240302,-500.0,0.00021917,3]
[349520357,1737274240311,-500.0,0.00021917,3]
[349520358,1737274240320,-500.0,0.00021917,3]
[349520359,1737274240330,-500.0,0.00021917,3]
[349520361,1737274240339,-831.13,0.00021917,3]
[349520362,1737274240348,-500.0,0.00021917,3]
[349520363,1737274240358,-503.9787912,0.00021917,3]
[349520364,1737274240367,-500.0,0.00021917,3]
[349520365,1737274240377,-500.0,0.00021917,3]
[349520366,1737274240387,-182.76,0.00021917,3]
[349520367,1737274240396,-500.0,0.00021917,3]
[349520368,1737274240409,-500.0,0.00021917,3]
[349520369,1737274240419,-500.0,0.00021917,3]
[349520370,1737274240428,-500.0,0.00021917,3]
[349520371,1737274240437,-500.0,0.00021917,3]
[349520373,1737274240447,-500.0,0.00021917,3]
[349520374,1737274240456,-500.0,0.00021917,3]
[349520375,1737274240466,-500.0,0.00021917,3]
[349520376,1737274240475,-500.0,0.00021917,3]
[349520377,1737274240485,-500.0,0.00021917,3]
[349520378,1737274240495,-500.0,0.00021917,3]
[349520379,1737274240504,-500.0,0.00021917,3]
[349520380,1737274240514,-500.0,0.00021917,3]
[349520381,1737274240523,-562.28,0.00021917,3]
[349520382,1737274240533,-500.0,0.00021917,2]
[349520383,1737274240542,-500.0,0.00021917,3]
[349520384,1737274240554,-500.0,0.00021917,3]
[349520385,1737274240564,-3234.41,0.00021917,3]
[349520386,1737274240574,-500.0,0.00021917,3]
[349520387,1737274240584,-500.0,0.00021917,3]
[349520388,1737274240593,-500.0,0.00021917,3]
[349520390,1737274240603,-499.0,0.00021917,2]
[349520391,1737274240612,-1854.74,0.00021917,3]
[349520392,1737274240622,-500.0,0.00021917,3]
[349520393,1737274240632,-500.0,0.00021917,3]
[349520394,1737274240641,-500.0,0.00021917,3]
[349520395,1737274240651,-500.0,0.00021917,3]
[349520396,1737274240661,-500.0,0.00021917,3]
[349520397,1737274240670,-500.0,0.00021917,3]
[349520398,1737274240679,-672.17,0.00021917,3]
[349520399,1737274240689,-501.36505825,0.00021917,3]
[349520400,1737274240698,-500.0,0.00021917,3]
[349520401,1737274240707,-500.0,0.00021917,3]
[349520403,1737274240717,-500.0,0.00021917,3]
[349520405,1737274240726,-505.11543903,0.00021917,3]
[349520406,1737274240736,-500.0,0.00021917,3]
[349520407,1737274240747,-500.0,0.00021917,3]
[349520408,1737274240756,-500.0,0.00021917,3]
[349520409,1737274240766,-500.0,0.00021917,3]
[349520411,1737274240775,-500.0,0.00021917,3]
[349520413,1737274240784,-852.38,0.00021917,3]
[349520414,1737274240793,-500.0,0.00021917,3]
[349520415,1737274240805,-500.0,0.00021917,3]
[349520416,1737274240813,-9190.93405453,0.00021917,3]
[349520417,1737274240828,-33.40594547,0.00021917,3]
[349520418,1737274240837,-500.0,0.00021917,3]
[349520419,1737274240846,-9.76839998,0.00021917,3]
[349520432,1737274243660,-490.23160002,0.00021917,3]
[349520433,1737274243670,-500.0,0.00021917,3]
[349520434,1737274243679,-500.0,0.00021917,3]
[349520435,1737274243688,-500.0,0.00021917,3]
[349520437,1737274243698,-500.0,0.00021917,3]
[349520439,1737274243707,-616.9,0.00021917,3]
[349520440,1737274243716,-500.0,0.00021917,3]
[349520441,1737274243725,-500.0,0.00021917,3]
[349520442,1737274243734,-503.05170192,0.00021917,3]
[349520443,1737274243743,-500.0,0.00021917,3]
[349520444,1737274243753,-500.0,0.00021917,3]
[349520445,1737274243762,-500.0,0.00021917,3]
[349520446,1737274243771,-500.0,0.00021917,3]
[349520447,1737274243781,-500.0,0.00021917,3]
[349520448,1737274243791,-500.0,0.00021917,3]
[349520449,1737274243800,-500.0,0.00021917,3]
[349520450,1737274243810,-500.0,0.00021917,3]
[349520451,1737274243819,-605.29,0.00021917,3]
[349520452,1737274243828,-211.97,0.00021917,3]
[349520453,1737274243837,-500.0,0.00021917,3]
[349520454,1737274243846,-500.0,0.00021917,3]
[349520455,1737274243855,-500.0,0.00021917,3]
[349520456,1737274243864,-1378.68,0.00021917,3]
[349520457,1737274243873,-500.0,0.00021917,3]
[349520458,1737274243882,-500.0,0.00021917,3]
[349520459,1737274243891,-500.0,0.00021917,3]
[349520460,1737274243900,-500.0,0.00021917,3]
[349520461,1737274243909,-496.25522371,0.00021991,2]
[349520462,1737274243918,-500.0,0.00022002,2]
[349520463,1737274243927,-500.0,0.00022002,2]
[349520464,1737274243937,-500.0,0.00022002,2]
[349520465,1737274243946,-500.0,0.00022002,2]
[349520466,1737274243955,-500.0,0.00022002,2]
[349520467,1737274243964,-240.63028843,0.00022002,2]
[349520468,1737274243974,-500.0,0.00022002,2]
[349520469,1737274243984,-500.0,0.00022002,2]
[349520470,1737274243993,-500.0,0.00022002,2]
[349520471,1737274244002,-500.0,0.00022002,2]
[349520472,1737274244011,-322.77249727,0.00022002,2]
[349520473,1737274244020,-500.0,0.00022002,2]
[349520474,1737274244029,-500.0,0.00022002,2]
[349520475,1737274244038,-556.75000001,0.00022002,2]
[349520476,1737274244047,-500.0,0.00022002,2]
[349520477,1737274244058,-500.0,0.00022002,2]
[349520478,1737274244067,-500.0,0.00022002,2]
[349520479,1737274244077,-500.0,0.00022002,2]
[349520480,1737274244086,-500.0,0.00022002,2]
[349520481,1737274244095,-500.0,0.00022002,2]
[349520482,1737274244104,-500.0,0.00022002,2]
[349520483,1737274244113,-500.0,0.00022002,2]
[349520484,1737274244122,-500.0,0.00022002,2]
[349520485,1737274244131,-504.08083452,0.00022002,2]
[349520486,1737274244140,-345.68491424,0.00022002,2]
[349520487,1737274244148,-227.80891633,0.00022002,2]
[349520488,1737274244157,-238.38082201,0.00022002,2]
[349520489,1737274244166,-500.0,0.00022002,2]
[349520490,1737274244175,-500.0,0.00022002,2]
[349520491,1737274244184,-500.0,0.00022002,2]
[349520492,1737274244193,-500.0,0.00022002,2]
[349520493,1737274244202,-500.0,0.00022002,2]
[349520494,1737274244212,-500.0,0.00022002,2]
[349520495,1737274244222,-500.0,0.00022002,2]
[349520496,1737274244231,-500.0,0.00022002,2]
[349520497,1737274244240,-500.0,0.00022002,2]
[349520498,1737274244250,-500.0,0.00022002,2]
[349520499,1737274244259,-482.07843729,0.00022002,2]
[349520500,1737274244272,-17.92156271,0.00022002,2]
[349520501,1737274244281,-500.0,0.00022002,2]
[349520502,1737274244291,-500.0,0.00022002,2]
[349520503,1737274244301,-500.0,0.00022002,2]
[349520504,1737274244310,-500.0,0.00022002,2]
[349520505,1737274244320,-500.0,0.00022002,2]
[349520506,1737274244330,-500.0,0.00022002,2]
[349520507,1737274244339,-500.0,0.00022002,2]
[349520508,1737274244437,-500.0,0.00022002,2]
[349520509,1737274244447,-500.0,0.00022002,2]
[349520510,1737274244456,-500.0,0.00022002,2]
[349520511,1737274244465,-500.0,0.00022002,2]
[349520512,1737274244474,-500.0,0.00022002,2]
[349520513,1737274244485,-500.0,0.00022002,2]
[349520514,1737274244495,-500.0,0.00022002,2]
[349520515,1737274244504,-500.0,0.00022002,2]
[349520516,1737274244514,-500.0,0.00022002,2]
[349520517,1737274244523,-156.78630263,0.00022002,2]
[349520518,1737274244532,-500.0,0.00022002,2]
[349520519,1737274244541,-500.0,0.00022002,2]
[349520520,1737274244553,-500.0,0.00022002,2]
[349520521,1737274244563,-500.0,0.00022002,2]
[349520522,1737274244572,-500.0,0.00022002,2]
[349520523,1737274244582,-500.0,0.00022002,2]
[349520524,1737274244591,-500.0,0.00022002,2]
[349520525,1737274244600,-500.0,0.00022002,2]
[349520526,1737274244610,-500.0,0.00022002,2]
[349520527,1737274244619,-500.0,0.00022002,2]
[349520528,1737274244628,-500.0,0.00022002,2]
[349520529,1737274244637,-500.0,0.00022002,2]
[349520530,1737274244647,-500.0,0.00022002,2]
[349520531,1737274244656,-500.0,0.00022002,2]
[349520532,1737274244665,-500.0,0.00022002,2]
[349520533,1737274244675,-500.0,0.00022002,2]
[349520534,1737274244684,-500.0,0.00022002,2]
[349520535,1737274244693,-357.43220326,0.00022002,2]
[349520536,1737274244702,-179.91634563,0.00022002,2]
[349520537,1737274244722,-320.08365437,0.00022002,2]
[349520538,1737274244731,-500.0,0.00022002,2]
[349520539,1737274244739,-3517.46059967,0.00022003,3]
[349520540,1737274244749,-242.37185832,0.00022053,2]
[349520541,1737274244759,-500.0,0.00022053,2]
[349520542,1737274244768,-289.62742391,0.00022053,2]
[349520543,1737274244778,-500.0,0.00022053,2]
[349520544,1737274244788,-10901.80771643,0.00022053,5]
[349520545,1737274244797,-65003.6487473,0.00022054,5]
[349520580,1737274246660,-26854.30033023,0.00022054,5]
[349520581,1737274246670,-500.0,0.00022054,3]
[349520582,1737274246679,-500.0,0.00022054,3]
[349520583,1737274246688,-500.0,0.00022054,3]
[349520584,1737274246698,-424.42269008,0.00022054,3]
[349520585,1737274246707,-500.0,0.00022054,3]
[349520586,1737274246716,-500.0,0.00022054,3]
[349520587,1737274246725,-500.0,0.00022054,3]
[349520588,1737274246735,-500.0,0.00022054,3]
[349520589,1737274246744,-500.0,0.00022054,3]
[349520590,1737274246753,-500.0,0.00022054,3]
[349520591,1737274246763,-500.0,0.00022054,3]
[349520592,1737274246772,-500.0,0.00022054,3]
[349520593,1737274246781,-500.0,0.00022054,3]
[349520594,1737274246790,-500.0,0.00022054,3]
[349520595,1737274246799,-500.0,0.00022054,3]
[349520596,1737274246809,-500.0,0.00022054,3]
[349520597,1737274246819,-500.0,0.00022054,3]
[349520598,1737274246828,-500.0,0.00022054,3]
[349520599,1737274246837,-500.0,0.00022054,3]
[349520600,1737274246846,-500.0,0.00022054,3]
[349520601,1737274246855,-500.0,0.00022054,3]
[349520602,1737274246864,-500.0,0.00022054,3]
[349520603,1737274246873,-500.0,0.00022054,3]
[349520604,1737274246882,-500.0,0.00022054,3]
[349520605,1737274246891,-500.0,0.00022054,3]
[349520606,1737274246900,-500.0,0.00022054,3]
[349520607,1737274246910,-500.0,0.00022054,3]
[349520608,1737274246919,-516.57558204,0.00022054,3]
[349520609,1737274246928,-500.0,0.00022054,3]
[349520610,1737274246937,-502.32725409,0.00022054,3]
[349520611,1737274246947,-500.0,0.00022054,3]
[349520612,1737274246956,-500.0,0.00022054,3]
[349520613,1737274246969,-500.0,0.00022054,3]
[349520614,1737274246978,-500.0,0.00022054,3]
[349520615,1737274246987,-500.0,0.00022054,3]
[349520616,1737274246996,-500.0,0.00022054,3]
[349520617,1737274247005,-500.0,0.00022054,3]
[349520618,1737274247015,-500.0,0.00022054,2]
[349520619,1737274247023,-500.0,0.00022054,3]
[349520620,1737274247033,-500.0,0.00022054,3]
[349520621,1737274247043,-200.0,0.00022054,3]
[349520622,1737274247052,-500.0,0.00022054,3]
[349520623,1737274247064,-500.0,0.00022054,3]
[349520624,1737274247073,-500.0,0.00022054,3]
[349520625,1737274247083,-500.0,0.00022054,3]
[349520626,1737274247093,-500.0,0.00022054,3]
[349520627,1737274247103,-500.0,0.00022054,3]
[349520628,1737274247113,-506.83405393,0.00022054,3]
[349520629,1737274247122,-500.0,0.00022054,3]
[349520630,1737274247132,-301.86514953,0.00022054,3]
[349520631,1737274247141,-500.0,0.00022054,3]
[349520632,1737274247150,-500.0,0.00022054,3]
[349520633,1737274247159,-500.0,0.00022054,3]
[349520634,1737274247169,-500.0,0.00022054,3]
[349520635,1737274247178,-500.0,0.00022054,3]
[349520636,1737274247187,-500.0,0.00022054,3]
[349520637,1737274247196,-500.0,0.00022054,3]
[349520638,1737274247205,-500.0,0.00022054,3]
[349520639,1737274247214,-500.0,0.00022054,3]
[349520640,1737274247224,-500.0,0.00022054,3]
[349520641,1737274247233,-500.0,0.00022054,3]
[349520642,1737274247242,-500.0,0.00022054,3]
[349520643,1737274247251,-500.0,0.00022054,3]
[349520644,1737274247261,-500.0,0.00022054,3]
[349520645,1737274247271,-500.0,0.00022054,3]
[349520646,1737274247281,-165.75052654,0.00022054,3]
[349520647,1737274247291,-500.0,0.00022054,3]
[349520648,1737274247300,-555.93910561,0.00022054,3]
[349520649,1737274247311,-500.0,0.00022054,3]
[349520650,1737274247320,-500.0,0.00022054,3]
[349520651,1737274247329,-500.0,0.00022054,2]
[349520652,1737274247339,-503.5,0.00022054,3]
[349520653,1737274247348,-500.46338194,0.00022054,3]
[349520654,1737274247357,-3864.3,0.00022054,3]
[349520655,1737274247367,-500.0,0.00022054,3]
[349520656,1737274247376,-500.0,0.00022054,3]
[349520657,1737274247385,-500.0,0.00022054,3]
[349520658,1737274247394,-500.0,0.00022054,3]
[349520659,1737274247404,-500.0,0.00022054,3]
[349520660,1737274247416,-500.0,0.00022054,3]
[349520661,1737274247425,-500.0,0.00022054,3]
[349520662,1737274247434,-500.0,0.00022054,3]
[349520663,1737274247443,-500.0,0.00022054,3]
[349520664,1737274247454,-500.0,0.00022054,3]
[349520665,1737274247463,-500.0,0.00022054,3]
[349520666,1737274247472,-500.0,0.00022054,3]
[349520667,1737274247482,-500.0,0.00022054,3]
[349520668,1737274247494,-5458.39,0.00022054,3]
[349520669,1737274247505,-500.0,0.00022054,3]
[349520670,1737274247514,-500.0,0.00022054,3]
[349520671,1737274247523,-500.0,0.00022054,3]
[349520672,1737274247533,-500.0,0.00022054,3]
[349520673,1737274247542,-831.13,0.00022054,3]
[349520674,1737274247551,-500.0,0.00022054,3]
[349520675,1737274247562,-278.46949355,0.00022054,3]
[349520676,1737274247575,-221.53050645,0.00022054,3]
[349520677,1737274247584,-500.0,0.00022054,3]
[349520678,1737274247594,-500.0,0.00022054,3]
[349520679,1737274247603,-500.0,0.00022054,3]
[349520680,1737274247612,-500.0,0.00022054,3]
[349520681,1737274247622,-500.0,0.00022054,3]
[349520682,1737274247631,-500.0,0.00022054,3]
[349520683,1737274247640,-500.0,0.00022054,3]
[349520684,1737274247650,-500.0,0.00022054,3]
[349520685,1737274247658,-500.0,0.00022054,3]
[349520686,1737274247668,-559.2,0.00022054,3]
[349520687,1737274247677,-500.0,0.00022054,3]
[349520688,1737274247686,-562.28,0.00022054,3]
[349520689,1737274247695,-500.0,0.00022054,2]
[349520690,1737274247705,-189.81293435,0.00022054,3]
[349520691,1737274335693,357.573081,0.00013973,2]
[349520692,1737274350764,160.0,0.0002388,120]
[349520693,1737274410814,160.0,0.00023261,120]
[349520694,1737274488246,485.0,0.00024,120]
[349520695,1737274590784,160.0,0.00023419,120]
[349520696,1737274650793,160.0,0.00023412,120]
[349520697,1737274711368,160.0,0.00023723,120]
[349520698,1737274770922,160.0,0.00023365,120]
[349520754,1737274890770,160.0,0.00023704,120]
[349520755,1737275010781,160.0,0.00023688,120]
[349520757,1737275117082,1092.0,0.00024,120]
[349520758,1737275144946,2924.76,0.00024,120]
[349520759,1737275165396,2193.57,0.00024,120]
[349520760,1737275177467,1645.18,0.00024,120]
[349520761,1737275196227,1233.88,0.00024,120]
[349520762,1737275228886,1850.83,0.00024,120]
[349520765,1737275241702,1850.82,0.00024,120]
[349520766,1737275302104,3051.96189173,0.000125,2]
[349520767,1737275302133,1096.01800381,0.0002,120]
[349520768,1737275305620,188.0,0.0002,120]
[349520769,1737275311416,305.27347795,7e-05,120]
[349520770,1737275319957,1277.04052964,0.0002,120]
[349520771,1737275324486,986.20961623,0.0002202,120]
[349520774,1737275327811,2000.0,0.00015053,2]
[349520781,1737275430777,160.0,0.00023085,120]
[349520868,1737275437901,-500.0,0.00020274,2]
[349520869,1737275437911,-357.573081,0.00020447,2]
[349520870,1737275437921,-168.445326,0.00020623,2]
[349520871,1737275437931,-307.98159151,0.00021784,2]
[349520872,1737275437955,-399.39741797,0.00021784,2]
[349520873,1737275437964,-300.0,0.00021785,2]
[349520874,1737275437974,-12159.83606123,0.00021786,2]
[349520875,1737275437984,-165.41840791,0.00021817,2]
[349520876,1737275437994,-1233.72325278,0.00021817,2]
[349520877,1737275438004,-154.0848427,0.000219,2]
[349520878,1737275438014,-153.0,0.000219,2]
[349520879,1737275438024,-215.1283215,0.000219,2]
[349520880,1737275438034,-353.6953314,0.000219,2]
[349520881,1737275438044,-215.1283215,0.000219,2]
[349520883,1737275438054,-154.0848427,0.000219,2]
[349520885,1737275438064,-353.6953314,0.000219,2]
[349520887,1737275438074,-215.1283215,0.000219,2]
[349520888,1737275438083,-353.6953314,0.000219,2]
[349520889,1737275438093,-153.0,0.000219,2]
[349520890,1737275438103,-154.0848427,0.000219,2]
[349520891,1737275438112,-353.6953314,0.000219,2]
[349520892,1737275438122,-162.7452731,0.000219,2]
[349520893,1737275438132,-215.1283215,0.000219,2]
[349520894,1737275438141,-153.0,0.000219,2]
[349520895,1737275438150,-241.5895501,0.000219,2]
[349520896,1737275438160,-353.6953314,0.000219,2]
[349520897,1737275438169,-353.6953314,0.000219,2]
[349520898,1737275438178,-153.0,0.000219,2]
[349520899,1737275438187,-153.0,0.000219,2]
[349520900,1737275438196,-153.0,0.000219,2]
[349520901,1737275438206,-153.0,0.000219,2]
[349520902,1737275438216,-1171.22736719,0.000219,2]
[349520903,1737275438225,-3282.96322661,0.000219,3]
[349520904,1737275438234,-943.12669046,0.00021915,12]
[349520905,1737275438243,-154.25,0.00021917,2]
[349520906,1737275438253,-634.39290009,0.00021917,3]
[349520907,1737275438262,-503.04350945,0.00021917,2]
[349520908,1737275438272,-500.0,0.00021917,3]
[349520909,1737275438282,-484.89126471,0.00021917,3]
[349520910,1737275438291,-500.64782078,0.00021917,3]
[349520911,1737275438300,-333.71033379,0.00021917,3]
[349520912,1737275438309,-501.14516273,0.00021917,3]
[349520913,1737275438319,-612.02162582,0.00021917,3]
[349520914,1737275438330,-501.14541077,0.00021917,3]
[349520915,1737275438339,-501.80783993,0.00021917,3]
[349520916,1737275438349,-501.99613733,0.00021917,3]
[349520917,1737275438358,-500.0,0.00021917,3]
[349520918,1737275438367,-501.79712365,0.00021917,3]
[349520919,1737275438377,-500.0,0.00021917,3]
[349520920,1737275438386,-410.87524537,0.00021917,3]
[349520921,1737275438396,-500.0,0.00021917,3]
[349520922,1737275438406,-602.73673601,0.00021917,3]
[349520923,1737275438415,-500.0,0.00021917,3]
[349520924,1737275438425,-500.0,0.00021917,3]
[349520925,1737275438434,-500.0,0.00021917,3]
[349520926,1737275438443,-500.0,0.00021917,3]